bitfinex/quotes_ETHUSD_20250721
["timestamp","ask_amount","ask_price","bid_price","bid_amount"]
[1753088474702,3.7808,3781.4,3781.0,0.301]
[1753088474876,3.0,3781.2,3781.0,0.301]
[1753088475081,4.203,3781.1,3781.0,0.301]
[1753088475865,7.203,3781.1,3781.0,0.301]
[1753088476245,7.6519,3781.1,3781.0,0.301]
[1753088480318,3.4489,3781.1,3781.0,0.301]
[1753088480521,7.6499,3781.1,3781.0,0.301]
[1753088487305,3.4489,3781.1,3781.0,0.301]
[1753088487628,7.6479,3781.1,3781.0,0.301]
[1753088488330,3.0,3781.1,3781.0,2.94580296]
[1753088488560,7.199,3781.1,3781.0,3.72569158]
[1753088489635,3.0,3781.1,3781.0,4.16389158]
[1753088499992,3.4489,3781.1,3781.0,0.433]
[1753088500287,7.6439,3781.1,3781.0,0.301]
[1753088503800,14.12723301,3781.1,3781.0,0.301]
[1753088504629,3.4704927,3780.3,3780.2,0.001]
[1753088504796,16.70763963,3780.3,3780.2,0.001]
[1753088505320,17.17743963,3780.3,3780.2,0.001]
[1753088505616,11.1342927,3780.3,3780.2,0.001]
[1753088505784,6.9402927,3780.3,3780.2,0.001]
[1753088506114,11.1332927,3780.3,3780.2,0.001]
[1753088506787,17.17643963,3780.3,3780.2,0.001]
[1753088509892,4.295,3780.3,3780.2,0.001]
[1753088510089,3.8252,3780.3,3780.2,0.001]
[1753088510307,7.193,3780.3,3780.2,0.001]
[1753088511199,3.0,3780.3,3780.2,2.64636267]
[1753088511408,7.193,3780.3,3780.2,2.64636267]
[1753088511629,3.0,3780.3,3780.2,3.76954875]
[1753088511830,3.0,3780.3,3780.2,4.56704875]
[1753088516524,3.0,3780.3,3780.2,4.10504875]
[1753088517556,7.191,3780.3,3780.2,0.133]
[1753088517760,7.191,3780.3,3780.2,2.77836267]
[1753088518860,7.191,3780.3,3780.2,0.133]
[1753088519557,7.191,3780.3,3780.2,0.001]
[1753088519558,7.6608,3780.3,3780.2,0.001]
[1753088519757,10.3060927,3780.3,3780.2,0.001]
[1753088521074,10.3050927,3780.3,3780.2,0.001]
[1753088522368,3.4698,3780.3,3780.2,0.001]
[1753088522658,7.6598,3780.3,3780.2,0.001]
[1753088523225,10.3050927,3780.3,3780.2,0.001]
[1753088523854,7.6598,3780.3,3780.2,0.001]
[1753088524969,8.0079,3780.3,3780.2,0.001]
[1753088525161,8.4777,3780.3,3780.2,0.001]
[1753088525856,11.1229927,3780.3,3780.2,0.001]
[1753088530832,10.0109927,3780.3,3780.2,0.001]
[1753088531033,14.1979927,3780.3,3780.2,0.001]
[1753088532752,11.5527,3780.3,3780.2,0.001]
[1753088532953,11.6847,3780.3,3780.2,0.001]
[1753088533768,7.4977,3780.3,3780.2,0.001]
[1753088533970,6.078,3780.3,3780.2,0.001]
[1753088534178,10.264,3780.3,3780.2,2.64636267]
[1753088534345,6.078,3780.3,3780.2,2.64636267]
[1753088534784,6.078,3780.3,3780.2,3.23706267]
[1753088534997,10.264,3780.3,3780.2,3.82795895]
[1753088535859,3.0,3780.3,3780.2,4.62955895]
[1753088536591,0.002,3781.1,3780.4,3.19522272]
[1753088536757,4.186,3781.0,3780.9,0.55]
[1753088536952,0.8309,3780.9,3780.2,0.001]
[1753088537154,0.132,3780.7,3780.2,0.551]
[1753088537461,4.6405,3780.6,3780.2,0.551]
[1753088537696,0.4555,3780.6,3780.2,0.551]
[1753088537984,0.132,3780.7,3780.4,0.55]
[1753088538184,4.185,3780.5,3780.4,0.55]
[1753088538877,4.185,3780.5,3780.2,3.19634112]
[1753088539594,0.4555,3780.4,3780.2,0.551]
[1753088539778,4.185,3780.3,3780.2,3.19635157]
[1753088540089,4.185,3780.3,3780.2,0.551]
[1753088540966,4.185,3780.3,3780.2,3.19636267]
[1753088541602,4.185,3780.3,3780.2,0.551]
[1753088541896,4.6405,3780.3,3780.2,0.551]
[1753088543064,4.185,3780.3,3780.2,0.551]
[1753088545605,4.9354,3780.3,3780.2,0.001]
[1753088545791,5.3909,3780.3,3780.2,0.001]
[1753088545998,11.0361927,3780.3,3780.2,0.001]
[1753088546172,5.3909,3780.3,3780.2,0.001]
[1753088546569,8.0361927,3780.3,3780.2,0.001]
[1753088550595,5.3909,3780.3,3780.2,0.001]
[1753088550928,8.0361927,3780.3,3780.2,0.001]
[1753088552531,8.0321927,3780.3,3780.2,0.001]
[1753088554619,8.0301927,3780.3,3780.2,0.001]
[1753088558188,0.132,3780.4,3780.2,0.001]
[1753088558387,4.179,3780.3,3780.2,0.001]
[1753088560621,0.132,3780.4,3780.2,0.001]
[1753088560824,4.177,3780.3,3780.2,0.551]
[1753088561029,0.132,3780.4,3780.2,0.551]
[1753088561212,4.177,3780.3,3780.2,1.0097]
[1753088561404,4.177,3780.3,3780.2,3.65506267]
[1753088561720,0.132,3780.4,3780.3,2.6452927]
[1753088561925,4.309,3780.4,3780.2,3.6550374]
[1753088562228,4.309,3780.4,3780.3,2.6452927]
[1753088562427,4.309,3780.4,3780.2,1.0097]
[1753088562623,4.309,3780.4,3780.2,0.001]
[1753088562624,4.177,3780.3,3780.2,0.001]
[1753088562924,4.177,3780.3,3780.2,3.19636267]
[1753088563123,0.132,3780.4,3780.2,0.551]
[1753088563325,4.177,3780.3,3780.2,3.65500713]
[1753088563621,0.7763,3781.0,3780.3,0.55]
[1753088563836,4.7635,3780.9,3780.4,0.55]
[1753088564016,4.7635,3780.9,3780.2,0.001]
[1753088564017,0.132,3780.7,3780.2,0.001]
[1753088564207,4.176,3780.6,3780.2,0.001]
[1753088564400,7.2883062,3780.6,3780.2,0.001]
[1753088564625,2.6452927,3780.3,3780.2,0.001]
[1753088564828,6.8212927,3780.3,3780.2,0.001]
[1753088564990,0.132,3780.4,3780.2,0.001]
[1753088565488,4.176,3780.3,3780.2,0.001]
[1753088567199,4.6432,3780.3,3780.2,0.001]
[1753088567424,7.2884927,3780.3,3780.2,0.001]
[1753088567821,14.09466843,3780.3,3780.2,0.001]
[1753088568542,8.0498927,3780.3,3780.2,0.001]
[1753088568758,8.0478927,3780.3,3780.2,0.001]
[1753088569438,0.7614,3780.3,3780.2,0.001]
[1753088569600,4.9354,3780.3,3780.2,0.001]
[1753088571036,7.5806927,3780.3,3780.2,0.001]
[1753088571215,8.0478927,3780.3,3780.2,0.001]
[1753088572138,8.0548927,3780.3,3780.2,0.001]
[1753088576200,11.0548927,3780.3,3780.2,0.001]
[1753088576932,11.0528927,3780.3,3780.2,0.001]
[1753088577347,6.8808927,3780.3,3780.2,0.001]
[1753088577561,0.007,3780.3,3780.2,0.001]
[1753088577732,4.179,3780.3,3780.2,0.001]
[1753088578328,6.8242927,3780.3,3780.2,0.001]
[1753088578534,7.2914927,3780.3,3780.2,0.001]
[1753088579326,8.0972927,3780.3,3780.2,0.001]
[1753088579642,11.0972927,3780.3,3780.2,0.001]
[1753088580634,11.0962927,3780.3,3780.2,0.001]
[1753088582249,5.64536267,3780.2,3780.1,1e-08]
[1753088582450,5.64536267,3780.2,3779.6,0.001]
[1753088582451,6.39641262,3779.7,3779.6,0.001]
[1753088582657,16.61118835,3779.7,3779.6,0.001]
[1753088582949,12.90838835,3779.7,3779.6,0.001]
[1753088583110,17.07838835,3779.7,3779.6,0.001]
[1753088583614,10.56641262,3779.7,3779.6,0.001]
[1753088584252,11.03361262,3779.7,3779.6,0.001]
[1753088585084,11.03361262,3779.7,3779.4,0.001]
[1753088585085,6.40875262,3779.5,3779.4,0.001]
[1753088585215,16.62252835,3779.5,3779.4,0.001]
[1753088585410,17.08972835,3779.5,3779.4,0.001]
[1753088586432,2.64620269,3779.0,3778.9,0.001]
[1753088586635,16.63917842,3779.0,3778.9,0.001]
[1753088586827,17.10637842,3779.0,3778.9,0.001]
[1753088587354,17.10637842,3779.0,3778.9,1e-08]
[1753088587540,3.46831278,3778.7,3778.6,0.001]
[1753088587754,10.63631278,3778.7,3778.6,0.001]
[1753088587936,11.10351278,3778.7,3778.6,0.001]
[1753088588445,11.10451278,3778.7,3778.6,0.001]
[1753088590967,3.411663,3778.2,3778.1,0.001]
[1753088591171,16.62443873,3778.2,3778.1,0.001]
[1753088591344,17.09163873,3778.2,3778.1,0.001]
[1753088592165,12.92363873,3778.2,3778.1,0.001]
[1753088592466,17.09163873,3778.2,3778.1,0.001]
[1753088593046,2.64767401,3776.9,3776.8,0.001]
[1753088593243,4.168,3776.9,3776.8,0.001]
[1753088593898,6.81567401,3776.9,3776.8,0.001]
[1753088595080,4.168,3776.9,3776.8,0.001]
[1753088596274,7.26787401,3776.9,3776.8,0.001]
[1753088596475,11.05597401,3776.9,3776.8,0.001]
[1753088599284,6.43577401,3776.9,3776.8,0.001]
[1753088599486,6.43577401,3776.9,3776.8,0.9987]
[1753088599487,4.167,3776.9,3776.8,0.9987]
[1753088599675,4.299,3776.9,3776.8,0.9987]
[1753088600979,4.299,3776.9,3776.8,0.551]
[1753088601186,6.94667401,3776.9,3776.8,0.001]
[1753088601976,7.39887401,3776.9,3776.8,0.001]
[1753088602379,10.39887401,3776.9,3776.8,0.001]
[1753088603889,10.39887401,3776.9,3776.1,0.001]
[1753088603890,2.64816482,3776.2,3776.1,0.001]
[1753088604094,11.69294055,3776.2,3776.1,0.001]
[1753088604393,15.85894055,3776.2,3776.1,0.001]
[1753088604594,17.07334055,3776.2,3776.1,0.001]
[1753088605962,12.45514055,3776.2,3776.1,0.001]
[1753088606154,15.85894055,3776.2,3776.1,0.001]
[1753088606376,16.31114055,3776.2,3776.1,0.001]
[1753088606970,17.07004055,3776.2,3776.1,0.001]
[1753088609002,12.90404055,3776.2,3776.1,0.001]
[1753088609210,17.07004055,3776.2,3776.1,0.001]
[1753088609406,17.06904055,3776.2,3776.1,0.001]
[1753088612518,6.44038565,3775.6,3775.5,0.001]
[1753088612726,6.44038565,3775.6,3774.3,0.7829]
[1753088612727,0.1233,3775.0,3773.7,0.7829]
[1753088612898,8.69424709,3774.4,3773.9,0.4477]
[1753088613083,2.64957451,3774.2,3774.0,0.4477]
[1753088613289,4.165,3774.1,3774.0,0.4477]
[1753088613982,4.164,3774.1,3774.0,0.4477]
[1753088614209,4.164,3774.1,3773.3,0.026502]
[1753088614440,4.164,3774.1,3772.6,0.8115]
[1753088614441,6.04477573,3773.7,3772.8,0.4477]
[1753088614587,6.04477573,3774.2,3773.1,0.8252]
[1753088614927,9.355,3774.3,3772.8,0.4477]
[1753088614928,6.355,3774.3,3773.4,0.8252]
[1753088615087,6.355,3774.3,3774.2,2.64956812]
[1753088615287,6.16807573,3775.0,3774.2,2.64956812]
[1753088615288,0.1233,3775.0,3774.5,2.64935753]
[1753088615491,4.165,3774.9,3774.8,0.55]
[1753088615802,4.165,3774.9,3774.8,0.9977]
[1753088615989,0.1233,3775.0,3774.8,0.9977]
[1753088616325,4.164,3774.9,3774.8,0.55]
[1753088616711,4.164,3774.9,3774.8,3.19914697]
[1753088616912,4.164,3774.9,3774.8,4.46884697]
[1753088617115,0.1233,3775.0,3774.9,2.64907679]
[1753088617312,4.2873,3775.0,3774.9,3.09677679]
[1753088617497,0.1233,3775.0,3774.9,4.35857442]
[1753088617830,4.2873,3775.0,3774.9,4.35857442]
[1753088618036,4.164,3775.0,3774.9,4.35857442]
[1753088618388,6.04477573,3775.8,3775.2,2.64884825]
[1753088618592,6.356,3776.0,3775.5,0.55]
[1753088618823,6.356,3776.0,3775.7,0.55]
[1753088619137,4.164,3775.9,3775.8,0.9977]
[1753088619321,4.164,3775.9,3775.8,0.55]
[1753088619786,6.356,3776.0,3775.6,0.55]
[1753088619986,4.164,3775.9,3775.6,0.9977]
[1753088620315,4.164,3775.9,3775.5,0.55]
[1753088620831,6.04477573,3775.6,3775.5,0.55]
[1753088621027,6.04477573,3775.6,3774.2,0.26495681]
[1753088621028,10.20777573,3775.6,3775.1,1.357]
[1753088621351,6.04477573,3775.2,3774.8,0.8106]
[1753088621641,4.163,3775.1,3774.8,0.8106]
[1753088621806,4.163,3775.1,3774.8,1.2583]
[1753088622188,4.163,3775.1,3774.9,0.55]
[1753088622625,0.132,3775.2,3774.9,0.55]
[1753088622827,4.163,3775.1,3774.9,0.55]
[1753088623044,4.163,3775.1,3775.0,0.9977]
[1753088623634,4.163,3775.1,3775.0,0.55]
[1753088627432,10.20777573,3775.1,3775.0,0.55]
[1753088627775,10.67857573,3775.1,3774.5,0.7771]
[1753088627924,6.04477573,3774.6,3774.2,0.7771]
[1753088628118,4.162,3774.5,3774.2,0.55]
[1753088628655,4.162,3774.5,3774.1,0.55]
[1753088629019,4.162,3774.5,3773.9,0.7681]
[1753088629020,6.04477573,3774.2,3773.9,0.7681]
[1753088629334,4.162,3774.1,3773.9,0.7681]
[1753088629657,8.69406634,3774.6,3774.0,0.442]
[1753088629861,4.162,3774.5,3774.2,0.55]
[1753088630017,0.132,3774.6,3774.2,0.55]
[1753088630231,0.132,3774.8,3774.4,3.19942136]
[1753088630438,0.132,3774.8,3774.6,0.55]
[1753088630669,4.162,3774.7,3774.6,0.55]
[1753088631549,6.81121715,3774.7,3774.2,0.55]
[1753088631748,6.94321715,3774.7,3774.2,0.55]
[1753088632171,2.64933722,3774.6,3774.2,0.55]
[1753088632347,4.161,3774.5,3774.2,0.55]
[1753088633076,4.161,3774.5,3774.2,0.992]
[1753088633770,6.81040359,3774.5,3774.2,0.55]
[1753088633938,4.161,3774.5,3773.8,0.7816]
[1753088634139,6.17677573,3774.2,3773.8,0.7816]
[1753088634459,6.17677573,3774.2,3773.5,0.9165]
[1753088634460,2.64975407,3774.0,3773.5,0.9165]
[1753088634663,4.161,3773.9,3773.5,0.9165]
[1753088634861,4.161,3773.9,3773.6,0.551]
[1753088635172,0.4708,3774.1,3773.6,0.551]
[1753088635173,4.161,3773.8,3773.6,0.551]
[1753088635375,4.161,3773.8,3773.7,0.992]
[1753088635579,8.82635802,3774.2,3773.7,0.992]
[1753088635757,4.161,3774.1,3773.7,0.55]
[1753088635958,4.161,3774.1,3773.9,0.55]
[1753088636941,0.132,3774.2,3773.9,0.55]
[1753088637143,0.132,3774.2,3774.0,0.442]
[1753088637349,2.64908334,3774.9,3774.3,0.55]
[1753088637581,3.8158,3775.0,3774.3,0.55]
[1753088637582,0.132,3774.4,3774.3,0.55]
[1753088637882,4.293,3774.4,3774.3,0.55]
[1753088639174,4.161,3774.4,3774.3,0.55]
[1753088639477,4.161,3774.4,3774.0,0.55]
[1753088639681,6.81043846,3774.4,3774.0,0.55]
[1753088639981,4.16,3774.3,3774.0,0.55]
[1753088640182,10.20477573,3774.3,3773.6,2.65096008]
[1753088640393,10.20477573,3774.3,3773.7,0.55]
[1753088640685,4.16,3774.2,3774.0,2.64969161]
[1753088641048,8.694084,3774.6,3774.0,3.09169161]
[1753088641449,4.16,3774.5,3774.0,3.09169161]
[1753088641650,2.6492415,3774.7,3774.2,0.55]
[1753088641882,2.6492415,3774.7,3774.2,1.3719]
[1753088641883,4.16,3774.6,3774.2,1.3719]
[1753088642084,4.16,3774.6,3774.4,0.55]
[1753088642615,5.64906293,3775.0,3774.3,0.55]
[1753088642885,0.007,3775.1,3774.9,0.55]
[1753088643076,0.007,3775.1,3775.0,4.42569668]
[1753088644384,0.007,3775.1,3775.0,1.7502]
[1753088644682,0.007,3775.1,3775.0,3.95720662]
[1753088644873,0.007,3775.1,3775.0,4.39920662]
[1753088645245,4.166,3775.1,3775.0,4.39920662]
[1753088648457,0.007,3775.1,3775.0,5.10404117]
[1753088648767,0.007,3775.1,3775.0,8.10404117]
[1753088648986,1e-08,3775.1,3775.0,8.10404117]
[1753088649297,1e-08,3775.1,3775.0,8.23604117]
[1753088649518,0.002,3776.0,3775.9,3.19837522]
[1753088649803,0.002,3776.0,3775.9,3.96147522]
[1753088649955,0.002,3776.0,3775.9,4.09347522]
[1753088651102,0.002,3776.0,3775.9,4.53547522]
[1753088651587,0.002,3776.0,3775.9,5.28035235]
[1753088653110,0.002,3776.0,3775.9,8.28035235]
[1753088653311,4.157,3776.3,3776.2,4.02276482]
[1753088653524,6.488,3777.1,3777.0,0.55]
[1753088653719,10.512,3777.1,3777.0,0.55]
[1753088653923,6.356,3777.1,3777.0,3.19760391]
[1753088654141,10.512,3777.1,3777.0,3.19760391]
[1753088655235,10.512,3777.1,3776.8,0.132]
[1753088655443,0.132,3777.0,3776.4,2.64799444]
[1753088655606,0.5959,3777.0,3776.7,0.55]
[1753088655806,0.5959,3777.0,3776.7,3.1978106]
[1753088656009,0.5959,3777.0,3776.7,0.55]
[1753088656348,0.5959,3777.0,3776.7,3.19780281]
[1753088656718,0.132,3777.0,3776.7,3.19780281]
[1753088657118,0.132,3777.0,3776.9,3.19767401]
[1753088657349,0.134,3777.6,3777.4,0.55]
[1753088657503,4.155,3777.5,3777.4,0.55]
[1753088658007,0.5979,3777.6,3777.5,3.19725347]
[1753088658008,0.002,3777.6,3777.5,3.19725347]
[1753088658212,4.157,3777.6,3777.5,3.19725347]
[1753088658715,4.156,3777.6,3777.5,3.19725347]
[1753088658915,4.156,3777.6,3777.5,0.55]
[1753088659323,4.156,3777.6,3777.5,3.19725347]
[1753088660023,0.002,3777.6,3777.5,0.55]
[1753088660236,4.156,3777.6,3777.5,0.55]
[1753088660949,0.002,3777.6,3777.5,3.19725347]
[1753088661250,4.156,3777.6,3777.5,3.19725347]
[1753088662631,4.156,3777.6,3777.5,0.55]
[1753088662831,4.156,3777.6,3777.5,3.19725347]
[1753088663554,4.156,3777.6,3777.5,0.55]
[1753088663914,4.155,3777.6,3777.5,0.55]
[1753088664270,4.6189,3777.6,3777.5,0.55]
[1753088664772,4.155,3777.6,3777.5,3.19725347]
[1753088665119,4.154,3777.6,3777.5,3.19725347]
[1753088665393,0.002,3777.6,3777.5,3.19725347]
[1753088665562,0.002,3777.6,3777.5,4.36091424]
[1753088665905,4.154,3777.6,3777.5,4.74088677]
[1753088666078,4.154,3777.6,3777.5,5.14841424]
[1753088666273,0.002,3777.6,3777.5,5.14841424]
[1753088666486,4.154,3777.6,3777.5,5.17488677]
[1753088666692,4.154,3777.6,3777.5,5.14841424]
[1753088667165,0.002,3777.6,3777.5,5.14841424]
[1753088667361,0.002,3777.6,3777.5,5.17488677]
[1753088667607,4.154,3777.6,3777.5,5.17488677]
[1753088667829,4.154,3777.6,3777.5,5.14841424]
[1753088668602,0.002,3777.6,3777.5,5.14841424]
[1753088668774,0.002,3777.6,3777.5,5.17488677]
[1753088669198,0.002,3777.6,3777.5,5.14841424]
[1753088669403,0.002,3777.6,3777.5,4.55075347]
[1753088671397,0.002,3777.6,3777.5,3.32925347]
[1753088672192,0.002,3777.6,3777.5,4.590926]
[1753088672810,0.002,3778.4,3778.3,3.19669295]
[1753088673009,0.002,3778.4,3778.3,4.10459295]
[1753088673210,0.002,3778.4,3778.3,5.24019684]
[1753088673424,0.002,3779.2,3779.0,2.64620269]
[1753088673599,4.152,3779.2,3779.0,4.02930269]
[1753088673926,4.152,3779.2,3779.0,3.32820269]
[1753088674638,4.151,3779.2,3779.0,3.76220269]
[1753088674806,4.151,3779.2,3779.0,4.48322338]
[1753088674989,4.151,3779.2,3779.0,0.682]
[1753088675789,2.64627272,3778.9,3778.7,0.132]
[1753088676026,0.4639,3778.8,3778.3,0.132]
[1753088676329,0.4639,3778.8,3778.4,0.55]
[1753088676330,4.6129,3778.7,3778.4,0.55]
[1753088676490,10.17079292,3779.0,3778.3,0.132]
[1753088676698,6.79427653,3778.9,3778.3,0.132]
[1753088677028,12.8170171,3779.0,3778.3,0.132]
[1753088677230,4.148,3778.9,3778.4,3.19660654]
[1753088677432,4.148,3778.9,3778.4,3.19660414]
[1753088677637,4.148,3778.9,3778.6,0.55]
[1753088677848,0.9622,3779.0,3778.6,0.55]
[1753088678035,4.148,3778.9,3778.7,0.55]
[1753088678402,4.148,3778.9,3778.6,0.566]
[1753088678403,4.148,3778.9,3778.8,3.19634275]
[1753088678604,0.002,3779.1,3778.9,0.55]
[1753088679038,0.002,3779.1,3779.0,3.19620269]
[1753088679421,4.15,3779.1,3779.0,0.55]
[1753088679623,4.6139,3779.1,3779.0,0.55]
[1753088680544,4.15,3779.1,3779.0,3.19620269]
[1753088680840,4.149,3779.1,3779.0,0.55]
[1753088681140,0.002,3779.1,3779.0,3.19620269]
[1753088681637,0.002,3779.1,3779.0,0.55]
[1753088681638,4.149,3779.1,3779.0,0.55]
[1753088682017,4.149,3779.1,3779.0,3.19620269]
[1753088683145,0.002,3779.1,3779.0,5.13660353]
[1753088683823,0.002,3779.1,3779.0,4.70260353]
[1753088684024,0.002,3779.1,3779.0,4.10250269]
[1753088684250,0.002,3779.1,3779.0,4.54540269]
[1753088684450,0.002,3779.1,3779.0,4.57186471]
[1753088686033,0.002,3779.1,3779.0,4.54540269]
[1753088686258,0.002,3779.1,3779.0,3.32820269]
[1753088687057,0.002,3779.1,3779.0,4.44434151]
[1753088687258,0.002,3779.1,3779.0,4.47080353]
[1753088688053,0.002,3779.1,3779.0,5.22540353]
[1753088688552,0.002,3779.1,3779.0,5.19894151]
[1753088689568,0.002,3779.1,3779.0,9.34394151]
[1753088690063,0.002,3779.1,3779.0,5.19894151]
[1753088690265,0.002,3779.1,3779.0,5.22540353]
[1753088690474,0.002,3779.1,3779.0,8.22540353]
[1753088690654,0.002,3779.1,3779.0,8.19894151]
[1753088691032,1e-08,3779.1,3779.0,8.19894151]
[1753088692775,0.002,3780.1,3780.0,3.19550264]
[1753088693448,0.002,3780.1,3780.0,4.33213628]
[1753088695270,0.002,3780.1,3780.0,4.30568126]
[1753088695479,0.002,3780.1,3780.0,3.86278126]
[1753088695635,0.002,3780.1,3780.0,3.19550264]
[1753088696075,0.002,3780.1,3780.0,3.22195766]
[1753088696475,0.002,3780.1,3780.0,3.66485766]
[1753088696775,0.002,3780.1,3780.0,3.22195766]
[1753088696979,0.002,3780.1,3780.0,3.19550264]
[1753088697138,0.002,3780.1,3780.0,3.86278126]
[1753088697539,0.002,3780.1,3780.0,3.19550264]
[1753088697775,0.4718,3780.1,3779.3,0.801]
[1753088697981,0.4718,3780.1,3779.9,2.64555684]
[1753088698140,0.002,3780.1,3780.0,0.55]
[1753088698843,0.4718,3780.1,3780.0,0.55]
[1753088699044,0.4718,3780.1,3779.8,0.55]
[1753088699289,0.4698,3780.0,3779.8,0.55]
[1753088699579,0.002,3780.1,3779.9,0.55]
[1753088700283,4.6118,3780.0,3779.2,2.64600359]
[1753088700586,0.4698,3779.9,3779.6,2.64573677]
[1753088700773,0.4698,3779.8,3779.5,2.64582615]
[1753088701086,0.4698,3779.7,3779.6,0.55]
[1753088701272,0.4698,3779.7,3779.5,2.64582615]
[1753088701273,0.4698,3779.7,3779.5,0.55]
[1753088701468,7.222,3780.0,3779.5,0.55]
[1753088701645,0.4698,3779.6,3779.5,0.55]
[1753088701846,0.4698,3779.6,3779.5,3.19585262]
[1753088703049,0.4698,3779.6,3779.5,0.55]
[1753088703379,1.2919,3779.6,3779.5,3.19585262]
[1753088703571,0.8221,3779.8,3779.7,2.645685]
[1753088703746,0.8221,3779.8,3779.7,3.195685]
[1753088704087,5.4329,3779.8,3779.7,3.195685]
[1753088704381,3.212,3780.0,3779.8,2.64559478]
[1753088704586,4.141,3779.9,3779.8,3.19559478]
[1753088704744,3.08,3780.0,3779.9,3.19557263]
[1753088704948,7.221,3780.0,3779.9,3.32757263]
[1753088705144,7.221,3780.0,3779.9,4.00929508]
[1753088705417,0.002,3780.1,3779.9,4.00929508]
[1753088705418,0.002,3780.1,3780.0,3.19550264]
[1753088705550,0.002,3780.1,3780.0,4.03955766]
[1753088705744,0.002,3780.1,3780.0,4.48245766]
[1753088705950,0.002,3780.1,3780.0,4.45600264]
[1753088706181,0.002,3780.1,3780.0,5.48329189]
[1753088706383,0.002,3780.1,3780.0,4.66569189]
[1753088708578,0.002,3780.1,3780.0,5.13504691]
[1753088709198,0.002,3780.1,3780.0,4.66569189]
[1753088710714,0.002,3780.1,3779.9,0.132]
[1753088710715,0.4718,3780.1,3779.9,0.132]
[1753088710894,0.4698,3780.0,3779.6,2.64573008]
[1753088711099,0.002,3780.1,3779.6,2.77773008]
[1753088711307,0.4698,3779.9,3779.7,3.19568218]
[1753088711604,0.4698,3779.8,3779.7,0.55]
[1753088711808,0.4698,3779.8,3779.7,3.19571262]
[1753088712014,0.4698,3779.8,3779.7,0.55]
[1753088712309,1.2744,3779.8,3779.4,2.64590717]
[1753088712483,0.4698,3779.7,3779.4,2.77790717]
[1753088712971,0.132,3780.0,3779.4,0.132]
[1753088713179,0.002,3780.1,3780.0,3.19550264]
[1753088713713,0.002,3780.1,3780.0,2.99550264]
[1753088718514,0.002,3780.1,3780.0,4.23825766]
[1753088718682,0.002,3780.1,3780.0,4.21180264]
[1753088721332,0.002,3780.1,3780.0,4.23825766]
[1753088721509,0.002,3780.1,3780.0,5.34044189]
[1753088722732,1e-08,3780.1,3780.0,5.34044189]
[1753088723111,1e-08,3780.1,3780.0,5.47244189]
[1753088723838,0.002,3780.9,3780.4,3.19522272]
[1753088724147,0.002,3780.9,3780.4,3.22167494]
[1753088724304,0.002,3780.9,3780.4,4.40014289]
[1753088725020,0.002,3780.9,3780.4,4.86084289]
[1753088725608,0.002,3780.9,3780.4,5.65934289]
[1753088726215,0.002,3780.9,3780.4,8.19864289]
[1753088726414,0.002,3781.0,3780.9,4.01857291]
[1753088726723,0.002,3781.0,3780.9,7.97587562]
[1753088726927,0.002,3781.8,3781.6,3.19438332]
[1753088727123,0.002,3781.8,3781.6,3.22082715]
[1753088727326,0.002,3781.8,3781.6,3.19438332]
[1753088727642,0.4756,3781.7,3781.6,3.19438332]
[1753088728006,0.4756,3781.7,3781.6,0.55]
[1753088728212,1.2752,3781.7,3781.6,0.55]
[1753088728614,0.002,3781.7,3781.6,0.55]
[1753088728815,0.002,3781.7,3781.6,3.19438332]
[1753088730517,0.4756,3781.7,3781.6,3.19438332]
[1753088730722,0.002,3781.7,3781.6,3.19438332]
[1753088731934,0.4756,3781.7,3781.6,3.19438332]
[1753088733154,1.2759,3781.7,3781.6,3.19438332]
[1753088733352,1.2759,3781.7,3781.6,0.55]
[1753088735141,0.8161,3781.4,3780.2,2.64532083]
[1753088735455,4.6076,3781.3,3780.9,0.55]
[1753088735636,0.4736,3781.2,3780.9,0.55]
[1753088735842,4.134,3781.3,3780.9,0.55]
[1753088736049,0.4736,3781.1,3780.9,2.64486472]
[1753088736350,0.4736,3781.1,3781.0,0.55]
[1753088736548,4.134,3781.3,3781.1,0.55]
[1753088737818,4.0281,3781.4,3781.1,0.55]
[1753088738018,4.133,3781.3,3781.1,0.55]
[1753088738756,4.133,3781.3,3780.9,0.55]
[1753088739353,6.7775939,3781.3,3780.9,0.55]
[1753088740979,4.133,3781.3,3780.9,0.55]
[1753088742550,4.133,3781.3,3780.9,3.19485906]
[1753088742951,4.133,3781.3,3781.1,0.55]
[1753088743884,4.0281,3781.4,3781.1,0.55]
[1753088744073,4.133,3781.3,3781.1,0.55]
[1753088744882,4.0281,3781.4,3781.1,0.55]
[1753088745094,4.132,3781.2,3781.1,0.55]
[1753088746200,4.0281,3781.4,3781.1,0.55]
[1753088746401,4.132,3781.3,3781.1,0.55]
[1753088746814,4.132,3781.3,3780.9,3.19485489]
[1753088747370,4.132,3781.3,3781.1,0.55]
[1753088748215,3.212,3781.4,3781.1,3.19467348]
[1753088748418,4.132,3781.2,3781.1,3.19467348]